fUST/lending_fUST_20240427
["ID","MTS","AMOUNT","RATE_DAILY","PERIOD"]
[323687674,1714165840317,-526.42938947,0.00040996,4]
[323687676,1714165840327,-1466.78050736,0.00040996,4]
[323687678,1714165840337,-308.54338713,0.00040996,4]
[323687680,1714165840348,-1575.31939472,0.00040996,4]
[323687681,1714165840359,-604.49475011,0.00040996,4]
[323687683,1714165840368,-193.63179074,0.00040996,4]
[323687685,1714165840378,-228.67045727,0.00040996,4]
[323687687,1714165840387,-154.87609912,0.00040996,4]
[323687689,1714165840396,-471.30211099,0.00040996,4]
[323687691,1714165840405,-157.79100369,0.00040996,4]
[323687693,1714165840413,-1297.29914789,0.00040996,4]
[323687694,1714165840423,-521.62660451,0.00040996,4]
[323687696,1714165840432,-703.90495369,0.00040996,4]
[323687698,1714165840441,-468.51779384,0.00040997,4]
[323687700,1714165840450,-472.01022916,0.00040998,4]
[323687702,1714165840459,-155.0291126,0.00040998,4]
[323687704,1714165840468,-154.92253873,0.00040998,4]
[323687705,1714165840478,-156.06083935,0.00040998,4]
[323687707,1714165840487,-154.92253873,0.00040998,4]
[323687709,1714165840497,-16016.65232062,0.00040998,2]
[323687711,1714165840508,-519.6561429,0.00040998,4]
[323687713,1714165840519,-155.03086998,0.00040999,4]
[323687715,1714165840528,-10059.2145022,0.00040999,4]
[323687717,1714165840537,-26098.61982886,0.00041,7]
[323687718,1714165840547,-24228.11150293,0.00041,2]
[323687951,1714165842856,-7507.4085945,0.00041,2]
[323687953,1714165842866,-961.21838214,0.00041,90]
[323688270,1714165846152,-154.84515485,0.0002778,2]
[323688272,1714165846161,-923.16981239,0.00041,90]
[323696042,1714166184491,150.0,0.000266,120]
[323696043,1714166266324,150.0,0.000266,120]
[323696044,1714166337961,150.0,0.000266,120]
[323696045,1714166394211,150.0,0.000266,120]
[323696046,1714166422716,150.0,0.000266,120]
[323696047,1714166459177,150.0,0.000266,120]
[323696048,1714166476363,150.0,0.000266,120]
[323696049,1714166524883,150.0,0.000266,120]
[323696050,1714166561508,150.0,0.000266,120]
[323696052,1714166590319,150.0,0.000266,120]
[323696054,1714166708798,151.0,0.000266,120]
[323696055,1714166721010,151.0,0.000266,120]
[323696057,1714166729534,151.0,0.000266,120]
[323696064,1714166948128,-151.82408796,0.00014722,2]
[323696065,1714166950109,-3.00559938,0.00014722,2]
[323696066,1714166950131,-151.54486804,0.00014723,2]
[323696067,1714166971136,-154.82968734,0.00019716,2]
[323696068,1714166971160,-2452.38157548,0.00019717,2]
[323696069,1714166980807,152.8,0.000266,120]
[323696166,1714167031958,-1575.6250749,0.00019716,2]
[323696167,1714167031968,-3534.33333454,0.00019719,2]
[323696168,1714167031977,-1058.290985,0.0001972,2]
[323696169,1714167031987,-285.95799089,0.0002,4]
[323696170,1714167031998,-238.83321513,0.0002,4]
[323696171,1714167032007,-169.163708,0.00021006,2]
[323696172,1714167032016,-260.83249551,0.00023819,2]
[323696173,1714167032072,-452.86346769,0.00023819,2]
[323696174,1714167032082,-159.824362,0.0002382,2]
[323696175,1714167032092,-154.86062136,0.00023888,2]
[323696176,1714167032101,-300.0,0.00023889,2]
[323696177,1714167032111,-300.0,0.00023889,2]
[323696178,1714167032120,-24900.0,0.0002389,2]
[323696179,1714167032129,-5006.67062861,0.00024,2]
[323696180,1714167032138,-10000.0,0.00024365,2]
[323696181,1714167032148,-157.6160292,0.000244,2]
[323696182,1714167032157,-3195.19299706,0.000245,2]
[323696183,1714167032166,-200.0,0.00024658,2]
[323696184,1714167032175,-380.0,0.00024658,2]
[323696185,1714167032185,-167.57667404,0.00025802,2]
[323696186,1714167032194,-420.0,0.00025909,2]
[323696187,1714167032203,-420.0,0.00026278,2]
[323696188,1714167032212,-500.0,0.00026599,2]
[323696189,1714167032221,-344.70455256,0.00026599,2]
[323696190,1714167032231,-500.0,0.00026599,2]
[323696191,1714167032240,-244.21891684,0.00026599,2]
[323696266,1714167038070,-255.78108316,0.00026599,2]
[323696268,1714167038079,-249.85724737,0.00026599,2]
[323696270,1714167038089,-179.91890487,0.00026599,2]
[323696272,1714167038098,-154.82968734,0.000266,2]
[323696274,1714167038107,-1563.10972805,0.000266,2]
[323696276,1714167038117,-756.30915944,0.000266,2]
[323696278,1714167038126,-1000.0,0.000266,2]
[323696280,1714167038135,-154.82968734,0.000266,2]
[323696282,1714167038145,-10000.0,0.000266,2]
[323696284,1714167038155,-186.88972342,0.000266,2]
[323696286,1714167038164,-1705.32650005,0.000266,2]
[323696288,1714167038173,-167.18652189,0.000266,2]
[323696290,1714167038182,-154.82968734,0.000266,2]
[323696292,1714167038191,-150.0,0.0002668,2]
[323696294,1714167038201,-250.0,0.00027228,2]
[323696296,1714167038210,-160.201049,0.00027397,2]
[323696298,1714167038219,-226.383163,0.00027397,2]
[323696301,1714167038228,-166.666666,0.00027397,2]
[323696304,1714167038238,-1000.0,0.00027397,2]
[323696307,1714167038247,-350.0,0.00027776,2]
[323696310,1714167038256,-155.01755094,0.0002778,2]
[323696313,1714167038265,-220.80918768,0.00028,2]
[323696316,1714167038274,-154.82968734,0.00028,2]
[323696319,1714167038284,-504.56848431,0.00028,2]
[323696321,1714167038294,-166.666666,0.00028038,2]
[323696323,1714167038303,-587.0,0.000281,2]
[323696325,1714167038312,-209.61079414,0.00028317,3]
[323696327,1714167038321,-693.58422734,0.0002832,2]
[323696329,1714167038330,-301.42850934,0.0002832,2]
[323696331,1714167038339,-157.6085839,0.0002832,2]
[323696333,1714167038348,-305.530218,0.0002832,2]
[323696335,1714167038357,-170.5660207,0.0002832,2]
[323696337,1714167038366,-186.16529809,0.0002832,2]
[323696339,1714167038375,-206.09782636,0.0002832,2]
[323696341,1714167038384,-549.6120096,0.0002832,2]
[323696343,1714167038393,-508.18,0.00028321,2]
[323696345,1714167038402,-154.84515385,0.00028321,2]
[323696347,1714167038411,-2624.41567605,0.00028321,2]
[323696349,1714167038421,-7868.0386131,0.00028321,2]
[323696351,1714167038429,-406.72067355,0.00028324,2]
[323696353,1714167038438,-508.18,0.00028376,2]
[323696355,1714167038447,-508.18,0.00028431,2]
[323696357,1714167038456,-508.18,0.00028486,2]
[323696359,1714167038465,-508.18,0.00028541,2]
[323696360,1714167038474,-508.18,0.00028595,2]
[323696362,1714167038483,-508.18,0.0002865,2]
[323696364,1714167038492,-166.666666,0.00028679,2]
[323696366,1714167038501,-508.18,0.00028705,2]
[323696368,1714167038512,-508.18,0.0002876,2]
[323696371,1714167038521,-23.87569887,0.00028815,2]
[323700266,1714167665137,2624.41567505,0.00010032,2]
[323700267,1714167731012,154.82968734,0.00010032,2]
[323700268,1714167749029,155.02573538,0.00010032,2]
[323700269,1714167947165,-154.82968734,0.00014603,2]
[323700270,1714167947185,-409.02515958,0.00014603,2]
[323700271,1714167947206,-2658.33391615,0.00014604,2]
[323700273,1714168146119,-1057.47244,0.00014595,2]
[323700274,1714168146140,-1394.99883848,0.00014596,2]
[323700275,1714168146162,-300.0,0.00014596,2]
[323700276,1714168146183,-300.0,0.00014596,2]
[323700277,1714168146203,-7869.70150571,0.00014597,2]
[323700278,1714168146223,-3534.33333454,0.00014597,2]
[323700279,1714168146244,-3157.03057692,0.00014616,2]
[323700280,1714168146264,-157.50163005,0.00014624,2]
[323700281,1714168146284,-169.163708,0.00014786,2]
[323700282,1714168146304,-613.531234,0.00015151,2]
[323700283,1714168146324,-420.0,0.00015981,2]
[323700284,1714168146344,-420.0,0.00016056,2]
[323700285,1714168146363,-408.00397818,0.00016544,2]
[323700286,1714168146384,-155.36108946,0.00016544,2]
[323700287,1714168146404,-24900.0,0.00016545,2]
[323700288,1714168146424,-587.0,0.00017498,2]
[323700289,1714168146444,-587.0,0.00017661,2]
[323700290,1714168146463,-3323.32974375,0.00018,2]
[323700291,1714168146490,-62.68251979,0.00018,2]
[323700292,1714168146510,-195.90306374,0.000189,2]
[323700293,1714168158065,1357.05280457,0.00016543,2]
[323700294,1714168163454,500.0,0.00014604,2]
[323700295,1714168170153,-154.96708341,0.00019,2]
[323700296,1714168170173,-181.6909082,0.00019,2]
[323700297,1714168170193,-154.82968734,0.00019,2]
[323700298,1714168170212,-823.0,0.00019158,2]
[323700299,1714168170233,-823.0,0.00019427,2]
[323700300,1714168170252,-157.50163004,0.00019645,2]
[323700301,1714168170274,-3266.0,0.0001999,3]
[323700302,1714168170292,-1633.0,0.0001999,3]
[323700303,1714168170311,-816.5,0.0001999,3]
[323700304,1714168170330,-408.25,0.0001999,3]
[323700305,1714168170349,-204.12,0.0001999,3]
[323700306,1714168170369,-612.41,0.0001999,3]
[323700307,1714168170389,-273.15046244,0.00019994,2]
[323700308,1714168170408,-1057.47244,0.00019994,2]
[323700309,1714168170427,-301.2871687,0.00019995,2]
[323700310,1714168170447,-3534.33333454,0.00019995,2]
[323700311,1714168170467,-500.0,0.00019996,2]
[323700312,1714168170486,-500.0,0.00019996,2]
[323700313,1714168170505,-500.0,0.00019996,2]
[323700314,1714168170524,-500.0,0.00019996,2]
[323700315,1714168170544,-500.0,0.00019996,2]
[323700316,1714168170565,-500.0,0.00019996,2]
[323700317,1714168170585,-500.0,0.00019996,2]
[323700318,1714168170605,-500.0,0.00019996,2]
[323700319,1714168170625,-500.0,0.00019996,2]
[323700320,1714168170786,-500.0,0.00019996,2]
[323700321,1714168170808,-500.0,0.00019996,2]
[323700322,1714168170828,-500.0,0.00019996,2]
[323700323,1714168170847,-500.0,0.00019996,2]
[323700324,1714168170867,-500.0,0.00019996,2]
[323700325,1714168170885,-500.0,0.00019996,2]
[323700326,1714168170904,-500.0,0.00019996,2]
[323700327,1714168170922,-500.0,0.00019996,2]
[323700328,1714168170941,-500.0,0.00019996,2]
[323700329,1714168170960,-500.0,0.00019996,2]
[323700330,1714168170978,-236.23902218,0.00019996,2]
[323700331,1714168171001,-500.0,0.00019996,2]
[323700332,1714168171021,-500.0,0.00019996,2]
[323700333,1714168171042,-500.0,0.00019996,2]
[323700334,1714168171062,-500.0,0.00019996,2]
[323700335,1714168171083,-278.12582543,0.00019996,2]
[323700336,1714168171102,-500.0,0.00019996,2]
[323700337,1714168171122,-500.0,0.00019996,2]
[323700338,1714168171141,-500.0,0.00019996,2]
[323700339,1714168171161,-550.21949205,0.00019996,2]
[323700340,1714168171180,-500.0,0.00019996,2]
[323700341,1714168171199,-500.0,0.00019996,2]
[323700342,1714168171218,-500.0,0.00019996,2]
[323700343,1714168171237,-500.0,0.00019996,2]
[323700344,1714168171257,-500.0,0.00019996,2]
[323700345,1714168171276,-500.0,0.00019996,2]
[323700346,1714168171295,-500.0,0.00019996,2]
[323700347,1714168171314,-500.0,0.00019996,2]
[323700348,1714168171334,-500.0,0.00019996,2]
[323700349,1714168171353,-500.0,0.00019996,2]
[323700350,1714168171373,-500.0,0.00019996,2]
[323700351,1714168171392,-500.0,0.00019999,2]
[323700352,1714168171412,-253.51765946,0.00019999,2]
[323700353,1714168171432,-500.0,0.00019999,2]
[323700354,1714168171452,-500.0,0.00019999,2]
[323700355,1714168171471,-500.0,0.00019999,2]
[323700356,1714168171491,-421.2888997,0.00019999,2]
[323700357,1714168171510,-267.10944066,0.00019999,2]
[323700358,1714168171528,-500.0,0.00019999,2]
[323700359,1714168171547,-500.0,0.00019999,2]
[323700360,1714168171565,-454.26111311,0.00019999,2]
[323700361,1714168171584,-500.0,0.00019999,2]
[323700362,1714168171603,-500.0,0.00019999,2]
[323700363,1714168171621,-500.0,0.00019999,2]
[323700364,1714168171640,-500.0,0.00019999,2]
[323700365,1714168171659,-450.0,0.00019999,2]
[323700366,1714168171679,-500.0,0.00019999,2]
[323700367,1714168171699,-500.0,0.00019999,2]
[323700368,1714168171721,-500.0,0.00019999,2]
[323700369,1714168171740,-500.0,0.00019999,2]
[323700370,1714168171762,-500.0,0.00019999,2]
[323700371,1714168171782,-500.0,0.00019999,2]
[323700372,1714168171803,-500.0,0.00019999,2]
[323700373,1714168171822,-540.07393439,0.00019999,2]
[323700374,1714168171841,-500.0,0.00019999,2]
[323700375,1714168171859,-500.0,0.00019999,2]
[323700376,1714168171878,-285.44303047,0.00019999,2]
[323700377,1714168171898,-500.0,0.00019999,2]
[323700378,1714168171916,-500.0,0.00019999,2]
[323700379,1714168171935,-500.0,0.00019999,2]
[323700380,1714168171953,-500.0,0.00019999,2]
[323700381,1714168171972,-500.0,0.00019999,2]
[323700382,1714168171992,-500.0,0.00019999,2]
[323700383,1714168172011,-500.0,0.00019999,2]
[323700384,1714168172030,-500.0,0.00019999,2]
[323700385,1714168172049,-500.0,0.00019999,2]
[323700386,1714168172069,-500.0,0.00019999,2]
[323700387,1714168172089,-500.0,0.00019999,2]
[323700388,1714168172108,-499.99999999,0.00019999,2]
[323700389,1714168172127,-278.11086139,0.0002,2]
[323700390,1714168172146,-200.0,0.0002,2]
[323700391,1714168172165,-1007.276787,0.0002,4]
[323700392,1714168172185,-67375.45256163,0.0002,2]
[323700393,1714168172203,-57204.36361684,0.0002,2]
[323700394,1714168174941,305.12004422,0.00014604,2]
[323700395,1714168180440,154.82968734,0.00014604,2]
[323700396,1714168191303,2617.72165977,0.00014604,2]
[323700397,1714168191938,284.87621508,0.00014604,2]
[323700398,1714168196342,199.69097986,0.00014604,2]
[323700399,1714168203063,281.15904372,0.00014604,2]
[323700400,1714168208801,729.56943069,0.00014604,2]
[323700401,1714168210714,154.86062544,0.00014604,2]
[323700402,1714168215746,2180.1286647,0.000189,2]
[323700425,1714168233002,-154.82968734,0.00019,2]
[323700426,1714168233012,-174.13870876,0.00019998,2]
[323700427,1714168233022,-300.0,0.00019998,2]
[323700428,1714168233031,-284.27763127,0.00019998,2]
[323701068,1714168243269,-1176.51,0.0001999,3]
[323701070,1714168243278,-15.72236873,0.00019998,2]
[323701072,1714168243287,-3070.60801592,0.00019999,2]
[323701087,1714168243411,-891.67966993,0.00019999,2]
[323701090,1714168243421,-1255.57994542,0.00019999,2]
[323704605,1714168477803,273.31565003,0.0001,2]
[323704610,1714168952356,169.163708,0.00013755,2]
[323704611,1714169059462,154.82968734,0.00013617,2]
[323704612,1714169079462,193.79395934,0.00013617,2]
[323704613,1714169091428,5274.62589752,0.00013755,2]
[323704615,1714169134153,-322.2188763,0.00013751,2]
[323704616,1714169146094,-549.72031836,0.0001375,2]
[323704617,1714169146114,-1741.08488016,0.00013751,2]
[323704618,1714169235086,-1575.6250749,0.00013739,2]
[323704619,1714169235105,-459.88228259,0.00013739,2]
[323704620,1714169235124,-154.82968734,0.0001374,2]
[323704621,1714169235142,-1057.47244,0.0001374,2]
[323704622,1714169235160,-3534.33333454,0.0001374,2]
[323704623,1714169235178,-520.18530278,0.00013741,2]
[323704624,1714169235197,-362.13734366,0.00013742,2]
[323704625,1714169235215,-154.82968734,0.00013743,2]
[323704626,1714169235235,-1202.68534786,0.00013743,2]
[323704627,1714169235256,-300.0,0.00013743,2]
[323704628,1714169235277,-154.82968734,0.00013744,2]
[323704629,1714169235296,-187.36433922,0.00013744,2]
[323704630,1714169235320,-2588.69694882,0.00013744,2]
[323704631,1714169235339,-206.14128872,0.00013745,2]
[323704632,1714169235359,-154.82968734,0.00013746,2]
[323704633,1714169235379,-1878.79977854,0.00013746,2]
[323704634,1714169235399,-301.2871687,0.00013749,2]
[323704635,1714169235419,-16096.66445333,0.00013751,2]
[323704636,1714169235438,-179.1960508,0.00013751,2]
[323704637,1714169235458,-284.90230402,0.00013751,2]
[323704638,1714169235477,-549.72031836,0.0001462,2]
[323704639,1714169235498,-156.28278164,0.00014621,2]
[323704640,1714169235517,-300.0,0.00014728,2]
[323704641,1714169235537,-312.75084682,0.00015,2]
[323704642,1714169235556,-1676.6573344,0.00015,2]
[323704643,1714169235575,-938.92915977,0.00015,2]
[323704644,1714169235595,-420.0,0.0001506,2]
[323704645,1714169235614,-2100.22968197,0.00015067,2]
[323704646,1714169235633,-207.92306846,0.00015144,2]
[323704647,1714169235653,-408.8405375,0.00015144,2]
[323704648,1714169235674,-154.86062544,0.00015144,2]
[323704649,1714169235696,-6888.18390183,0.00015144,2]
[323704650,1714169235716,-1890.65321071,0.00015145,2]
[323704651,1714169235736,-24900.0,0.00015146,2]
[323704652,1714169235755,-250.0,0.00015189,2]
[323704653,1714169235776,-1527.06477966,0.00015388,2]
[323704654,1714169235794,-1280.67086,0.00015488,2]
[323704655,1714169235814,-420.0,0.00016201,2]
[323704656,1714169235834,-1527.06477963,0.00016265,2]
[323704657,1714169235852,-273.15046244,0.000165,2]
[323704658,1714169236004,-587.0,0.00016504,2]
[323704659,1714169236023,-593.59974677,0.00017094,2]
[323704660,1714169236043,-1527.06477963,0.00017141,2]
[323704661,1714169236063,-587.0,0.00017821,2]
[323704662,1714169236083,-40166.29225926,0.00017999,2]
[323704663,1714169251140,-8949.48335374,0.00013751,2]
[323704664,1714169251163,-239.80654079,0.00013751,2]
[323704665,1714169251183,-284.90230402,0.00013751,2]
[323704666,1714169251202,-1684.47302411,0.00017997,2]
[323704667,1714169251221,-1057.47244,0.00017997,2]
[323704668,1714169251241,-203.9799441,0.00017998,2]
[323704669,1714169251261,-312.3300125,0.00017998,2]
[323704670,1714169251281,-362.13734366,0.00017998,2]
[323704671,1714169251303,-154.82968734,0.00017998,2]
[323704672,1714169251328,-1201.30186171,0.00017998,2]
[323704673,1714169251351,-1878.18326724,0.00017998,2]
[323704674,1714169251371,-940.32116045,0.00017998,2]
[323704675,1714169251396,-12892.28356805,0.00017999,2]
[323704678,1714169353099,-165.04916428,0.00013751,2]
[323704679,1714169362117,-12.65933899,0.00013751,2]
[323704680,1714169362140,-154.82968734,0.00017993,2]
[323704681,1714169362160,-1057.47244,0.00017993,2]
[323704682,1714169362181,-187.36433922,0.00017994,2]
[323704683,1714169362201,-520.18530278,0.00017994,2]
[323704684,1714169362222,-154.82968734,0.00017995,2]
[323704685,1714169362243,-300.0,0.00017996,2]
[323704686,1714169362264,-300.0,0.00017996,2]
[323704687,1714169362283,-1620.34279447,0.00017997,2]
[323704688,1714169362304,-362.01061268,0.00017997,2]
[323704689,1714169362323,-1890.36328834,0.00017997,2]
[323704690,1714169362346,-683.25083792,0.00017998,2]
[323704691,1714169362366,-155.20510989,0.00017998,2]
[323704692,1714169362388,-1249.01989981,0.00017998,2]
[323704693,1714169362408,-154.86340167,0.00017998,2]
[323704694,1714169362429,-313.20028394,0.00017998,2]
[323704695,1714169362452,-2316.60630157,0.00017998,2]
[323704696,1714169362574,-1811.27703546,0.00017998,2]
[323704697,1714169362595,-6499.06384556,0.00018,2]
[323704698,1714169362615,-1029.06842604,0.00018,2]
[323704699,1714169362636,-24.25050079,0.00018,2]
[323704700,1714169365094,-178.45860591,0.00018,2]
[323704701,1714169365117,-927.73627561,0.00018044,2]
[323704702,1714169365141,-1798.31956826,0.00018693,2]
[323704703,1714169365162,-3054.12955926,0.00018892,2]
[323704704,1714169365183,-44444.0,0.00018893,2]
[323704705,1714169365203,-1599.87278708,0.000189,2]
[323704706,1714169365227,-156.28278163,0.00018978,2]
[323704707,1714169365248,-2512.46,0.00018981,3]
[323704708,1714169365267,-2057.42,0.00018981,3]
[323704709,1714169365286,-1028.71,0.00018981,3]
[323704710,1714169365307,-255158.16095689,0.00018991,2]
[323704711,1714169367141,-8468.62697664,0.00018991,2]
[323704725,1714169432319,-640.33543,0.0001799,2]
[323704727,1714169432329,-212.14600576,0.00017992,2]
[323704728,1714169432338,-24900.0,0.00017993,2]
[323704730,1714169432347,-1066.58185806,0.000189,2]
[323704731,1714169432361,-514.35,0.00018981,3]
[323704732,1714169432371,-257.18,0.00018981,3]
[323704733,1714169432380,-771.55,0.00018981,3]
[323704734,1714169432390,-300.0,0.00018989,2]
[323704735,1714169432399,-300.0,0.00018989,2]
[323704736,1714169432409,-575.1931803,0.00018989,2]
[323704737,1714169432418,-187.36433922,0.0001899,2]
[323704738,1714169432428,-155.93992905,0.0001899,2]
[323704739,1714169432439,-1057.47244,0.0001899,2]
[323704740,1714169432451,-6514.73847055,0.00018991,2]
[323704741,1714169432651,-559.45431183,0.00018991,2]
[323704742,1714169432671,-139420.58907315,0.00018991,2]
[323704743,1714169432680,-2791.14248371,0.00018992,2]
[323704744,1714169432690,-154.84515485,0.00018993,2]
[323704745,1714169432701,-154.93832663,0.00018993,2]
[323704746,1714169432710,-154.95666867,0.00018993,2]
[323704747,1714169432719,-155.02233795,0.00018993,2]
[323704748,1714169432728,-1164.94367171,0.00018993,2]
[323704749,1714169432737,-185.4848423,0.00018993,2]
[323704750,1714169432746,-539.63707301,0.00018993,2]
[323704751,1714169432889,-774.24016354,0.00018993,2]
[323704752,1714169432898,-468.2653797,0.00018993,2]
[323704753,1714169432909,-1482.12221106,0.00018993,2]
[323704754,1714169432919,-155.02999449,0.00018993,2]
[323704755,1714169432929,-1311.22668928,0.00018993,2]
[323704756,1714169432939,-640.17037402,0.00018993,2]
[323704757,1714169432949,-309.65937468,0.00018993,2]
[323704758,1714169432960,-2081.58251584,0.00018993,2]
[323704759,1714169432969,-193.994371,0.00018993,2]
[323704760,1714169432979,-2622.72435172,0.00018993,2]
[323704761,1714169432988,-456.45687012,0.00018993,2]
[323704762,1714169432997,-564.51895848,0.00018993,2]
[323704763,1714169433006,-283.38557575,0.00018993,2]
[323704764,1714169433016,-154.98299042,0.00018993,2]
[323704765,1714169433025,-23295.84101915,0.00018994,2]
[323704766,1714169433438,-1048.245,0.00018994,2]
[323704812,1714169438619,-154.82968734,0.00017989,2]
[323704814,1714169438629,-19687.75185166,0.00018994,2]
[323705045,1714169440529,-15137.89788659,0.00018994,2]
[323705047,1714169440540,-154.82968734,0.00019,2]
[323705048,1714169440549,-154.96708341,0.00019,2]
[323705051,1714169440559,-183.89729594,0.000191,2]
[323705053,1714169440568,-500.0,0.00019178,2]
[323705054,1714169440577,-500.0,0.00019178,2]
[323705057,1714169440587,-308.68064727,0.00019178,2]
[323705058,1714169440598,-500.0,0.00019178,2]
[323705060,1714169440608,-500.0,0.00019178,2]
[323705062,1714169440619,-172.24661023,0.00019178,2]
[323705065,1714169440629,-500.0,0.00019178,2]
[323705066,1714169440638,-192.91544691,0.00019178,2]
[323705068,1714169440648,-500.0,0.00019178,2]
[323705070,1714169440658,-648.90121327,0.00019178,2]
[323705073,1714169440667,-408.96904847,0.00019178,2]
[323705075,1714169440678,-500.0,0.00019178,2]
[323705077,1714169440687,-479.47558449,0.00019178,2]
[323705079,1714169440696,-500.0,0.00019178,2]
[323705081,1714169440706,-500.0,0.00019178,2]
[323705083,1714169440714,-500.0,0.00019178,2]
[323705085,1714169440723,-500.0,0.00019178,2]
[323705087,1714169440733,-500.0,0.00019178,2]
[323705089,1714169440742,-262.02218032,0.00019178,2]
[323705091,1714169440750,-285.0,0.00019178,2]
[323705093,1714169440760,-500.0,0.00019178,2]
[323705107,1714169440878,-500.0,0.00019178,2]
[323705109,1714169440888,-500.0,0.00019178,2]
[323705111,1714169440898,-500.0,0.00019178,2]
[323705113,1714169440907,-500.0,0.00019178,2]
[323705115,1714169440916,-267.10944066,0.00019178,2]
[323705117,1714169440926,-500.0,0.00019178,2]
[323705120,1714169440935,-500.0,0.00019178,2]
[323705122,1714169440945,-500.0,0.00019178,2]
[323705123,1714169440954,-500.0,0.00019178,2]
[323705125,1714169440963,-253.51765946,0.00019178,2]
[323705127,1714169440972,-500.0,0.00019178,2]
[323705129,1714169440981,-421.2888997,0.00019178,2]
[323705132,1714169440991,-500.0,0.00019178,2]
[323705133,1714169441000,-500.0,0.00019178,2]
[323705136,1714169441010,-500.0,0.00019178,2]
[323705138,1714169441019,-500.0,0.00019178,2]
[323705140,1714169441028,-167.98277918,0.00019178,2]
[323705141,1714169441037,-500.0,0.00019178,2]
[323705144,1714169441047,-500.0,0.00019178,2]
[323705145,1714169441056,-500.0,0.00019178,2]
[323705146,1714169441065,-278.05175407,0.00019178,2]
[323705147,1714169441073,-500.0,0.00019178,2]
[323705148,1714169441082,-500.0,0.00019178,2]
[323705149,1714169441090,-500.0,0.00019178,2]
[323705150,1714169441099,-500.0,0.00019178,2]
[323705151,1714169441108,-500.0,0.00019178,2]
[323705152,1714169441116,-500.31324289,0.00019178,2]
[323705153,1714169441127,-500.0,0.00019178,2]
[323705154,1714169441135,-449.81012132,0.00019178,2]
[323705155,1714169441144,-500.0,0.00019178,2]
[323705156,1714169441154,-500.0,0.00019178,2]
[323705157,1714169441163,-500.0,0.00019178,2]
[323705158,1714169441172,-500.0,0.00019178,2]
[323705159,1714169441181,-500.0,0.00019178,2]
[323705160,1714169441189,-500.0,0.00019178,2]
[323705161,1714169441198,-500.0,0.00019178,2]
[323705162,1714169441207,-165.0,0.00019178,2]
[323705163,1714169441216,-500.0,0.00019178,2]
[323705164,1714169441224,-445.19754284,0.00019178,2]
[323705165,1714169441233,-500.0,0.00019178,2]
[323705166,1714169441242,-500.0,0.00019178,2]
[323705167,1714169441251,-500.0,0.00019178,2]
[323705168,1714169441260,-500.0,0.00019178,2]
[323705169,1714169441268,-500.0,0.00019178,2]
[323705170,1714169441277,-500.0,0.00019178,2]
[323705171,1714169441286,-500.0,0.00019178,2]
[323705172,1714169441294,-500.0,0.00019178,2]
[323705173,1714169441303,-500.0,0.00019178,2]
[323705174,1714169441312,-162.61511996,0.00019178,2]
[323705175,1714169441320,-500.0,0.00019178,2]
[323705176,1714169441329,-500.0,0.00019178,2]
[323705177,1714169441338,-500.0,0.00019178,2]
[323705178,1714169441346,-500.0,0.00019178,2]
[323705179,1714169441356,-500.0,0.00019178,2]
[323705180,1714169441368,-500.0,0.00019178,2]
[323705181,1714169441377,-500.0,0.00019178,2]
[323705182,1714169441385,-500.0,0.00019178,2]
[323705183,1714169441394,-500.0,0.00019178,2]
[323705184,1714169441404,-500.0,0.00019178,2]
[323705185,1714169441413,-500.0,0.00019178,2]
[323705186,1714169441422,-500.0,0.00019178,2]
[323705187,1714169441431,-500.0,0.00019178,2]
[323705188,1714169441441,-500.0,0.00019178,2]
[323705190,1714169441451,-500.0,0.00019178,2]